bitfinex/quotes_SOLUSD_20240727
["timestamp","ask_amount","ask_price","bid_price","bid_amount"]
[1722115289386,8.01507884,185.26,185.12,1.08001027]
[1722115289387,1.52001284,185.25,185.12,1.08001027]
[1722115289717,1.52001284,185.25,185.11,1.08011006]
[1722115289890,1.35001284,185.25,185.11,1.08011006]
[1722115290090,8.01515986,185.26,185.11,1.08011006]
[1722115290312,24.18515986,185.26,185.1,5.55672576]
[1722115290806,0.17,185.25,185.11,1.0801077]
[1722115291021,24.18515986,185.26,185.11,1.0801077]
[1722115291022,6.6651,185.26,185.11,2.803052]
[1722115291307,6.6651,185.26,185.12,27.26285123]
[1722115291491,6.6651,185.26,185.13,1.72275816]
[1722115291492,1.34972393,185.25,185.13,1.72275816]
[1722115291691,1.34972393,185.25,185.13,45.0]
[1722115293187,15.2252,185.24,185.13,45.0]
[1722115293491,1.35012501,185.23,185.13,45.0]
[1722115293890,1.35012501,185.23,185.12,0.34]
[1722115293891,1.35012501,185.23,185.1,5.55672576]
[1722115294198,1.35012501,185.23,185.11,45.0]
[1722115294588,15.2252,185.24,185.12,1.72285123]
[1722115294784,15.2252,185.24,185.15,25.54]
[1722115294989,15.2252,185.24,185.16,46.0797091]
[1722115295306,15.2252,185.24,185.17,0.34]
[1722115295502,15.2252,185.24,185.18,1.07965698]
[1722115295699,15.2252,185.24,185.19,0.34]
[1722115296018,15.2252,185.24,185.2,1.0796339]
[1722115296208,6.6651,185.26,185.21,0.34]
[1722115296699,16.0694,185.3,185.21,21.41956111]
[1722115297015,16.0694,185.3,185.22,45.0]
[1722115297308,16.0694,185.3,185.23,21.4193279]
[1722115297515,16.0694,185.3,185.24,46.07930746]
[1722115297810,16.0694,185.3,185.25,20.0]
[1722115298017,16.0694,185.3,185.26,45.34]
[1722115300703,6.3398,185.31,185.26,45.34]
[1722115300891,6.3398,185.31,185.26,46.41926685]
[1722115301098,16.0694,185.36,185.27,1.07922212]
[1722115301310,16.0694,185.36,185.28,0.34]
[1722115301493,16.0694,185.36,185.28,45.34]
[1722115302001,16.0694,185.36,185.29,1.07911369]
[1722115302324,16.0694,185.36,185.3,1.41900432]
[1722115302626,16.0694,185.36,185.3,46.41900432]
[1722115302911,16.0694,185.36,185.3,46.41901049]
[1722115303113,6.3398,185.37,185.3,46.41901049]
[1722115303312,6.3398,185.37,185.3,46.41903586]
[1722115303614,6.3398,185.37,185.31,20.0]
[1722115303924,6.3398,185.37,185.32,45.34]
[1722115304099,22.4092,185.42,185.32,45.34]
[1722115304505,22.4092,185.42,185.33,1.07883748]
[1722115304814,22.4092,185.42,185.34,0.17]
[1722115305020,22.4092,185.42,185.34,45.34]
[1722115305021,1.34839412,185.41,185.34,45.34]
[1722115305218,22.4092,185.42,185.34,45.0]
[1722115305715,22.4092,185.42,185.34,46.07880271]
[1722115305915,22.4092,185.42,185.35,20.34]
[1722115306120,1.34853447,185.49,185.36,45.0]
[1722115306121,6.3398,185.47,185.36,45.0]
[1722115306291,6.3398,185.47,185.37,1.41861851]
[1722115306794,6.3398,185.47,185.37,20.34]
[1722115306998,6.3398,185.47,185.38,45.0]
[1722115307218,6.3398,185.47,185.39,0.34]
[1722115307824,6.3398,185.47,185.39,20.34]
[1722115307999,6.3398,185.47,185.4,45.0]
[1722115308202,6.3398,185.47,185.41,0.34]
[1722115310123,6.3398,185.47,185.37,20.0]
[1722115310325,6.3398,185.47,185.36,21.07841798]
[1722115310517,6.3398,185.47,185.36,20.0]
[1722115310823,1.34836097,185.46,185.34,20.0]
[1722115311002,1.34836258,185.45,185.33,22.28851004]
[1722115311202,1.34836258,185.45,185.33,2.28851004]
[1722115311505,1.34836258,185.45,185.33,1.07870636]
[1722115311816,7.68814971,185.47,185.33,1.07870636]
[1722115312204,6.3398,185.47,185.33,2.7996054]
[1722115312403,6.3398,185.47,185.35,25.54]
[1722115312617,6.3398,185.47,185.36,1.07861979]
[1722115312919,6.3398,185.47,185.36,21.07861979]
[1722115313826,7.68805164,185.47,185.36,20.0]
[1722115314007,6.3398,185.47,185.33,22.79950035]
[1722115314206,6.3398,185.47,185.33,2.79950035]
[1722115314405,6.3398,185.47,185.35,25.54]
[1722115314600,6.3398,185.47,185.36,21.07850092]
[1722115314805,6.3398,185.47,185.36,22.79912144]
[1722115315328,6.3398,185.47,185.37,45.0]
[1722115315630,16.0694,185.48,185.38,20.0]
[1722115315813,16.0694,185.48,185.39,45.34]
[1722115316131,16.0694,185.48,185.4,20.0]
[1722115316326,16.0694,185.48,185.41,45.34]
[1722115317125,16.0694,185.48,185.42,21.07825823]
[1722115317326,16.0694,185.48,185.43,45.34]
[1722115317526,6.0115,185.52,185.44,20.0]
[1722115317704,6.0115,185.52,185.45,46.41807437]
[1722115318107,6.0115,185.52,185.46,1.07803468]
[1722115318305,16.6591,185.54,185.47,0.34]
[1722115318504,16.6591,185.54,185.47,45.34]
[1722115318718,6.0115,185.57,185.48,21.07792147]
[1722115318918,6.0115,185.57,185.49,45.34]
[1722115319320,6.0115,185.57,185.49,46.41781188]
[1722115319515,6.0115,185.57,185.49,45.34]
[1722115319920,6.0115,185.57,185.49,45.0]
[1722115320626,6.0115,185.57,185.48,20.34]
[1722115320926,6.0115,185.57,185.45,20.0]
[1722115321130,6.0115,185.57,185.46,46.07800047]
[1722115321450,6.0115,185.57,185.47,20.0]
[1722115321626,6.0115,185.57,185.48,46.07783355]
[1722115321826,6.0115,185.57,185.49,20.0]
[1722115322007,6.0115,185.57,185.5,45.0]
[1722115322208,6.0115,185.57,185.51,0.34]
[1722115322938,0.8023435,185.61,185.52,26.61773057]
[1722115323134,0.8023435,185.61,185.53,66.71904392]
[1722115323314,0.8023435,185.61,185.54,1.4174681]
[1722115323512,0.8023435,185.61,185.54,3.13642015]
[1722115323713,0.8023435,185.61,185.54,16.2116434]
[1722115323914,0.8023435,185.61,185.55,65.0]
[1722115324334,0.8023435,185.61,185.56,0.34]
[1722115325243,0.8023435,185.61,185.56,41.75145813]
[1722115325544,255.98773329,185.97,185.56,41.75145813]
[1722115325545,6.0115,185.81,185.6,25.54]
[1722115325857,6.0115,185.81,185.61,66.24705293]
[1722115325858,1.34633207,185.8,185.61,66.24705293]
[1722115326024,2.14859527,185.79,185.61,75.86418116]
[1722115326952,18.31859527,185.79,185.61,75.86418116]
[1722115327243,18.31859527,185.79,185.61,74.78712823]
[1722115327449,18.31859527,185.79,185.62,1.07699076]
[1722115327652,18.31859527,185.79,185.63,0.34]
[1722115327962,16.17,185.77,185.63,0.34]
[1722115328167,16.17,185.77,185.61,29.44712823]
[1722115328168,1.34649091,185.76,185.62,0.17]
[1722115328325,1.34649091,185.76,185.62,0.34]
[1722115328754,16.17,185.74,185.61,7.72882523]
[1722115329051,16.17,185.74,185.57,6.92942246]
[1722115329052,16.17,185.71,185.5,1.07740596]
[1722115329227,1.34700739,185.7,185.5,1.07740596]
[1722115329432,0.34,185.69,185.5,2.7967279]
[1722115329740,1.34700739,185.7,185.5,2.7967279]
[1722115329741,1.3469906,185.68,185.62,4.3096]
[1722115329947,1.34687234,185.69,185.5,2.7967279]
[1722115330250,1.34687234,185.69,185.63,4.3094]
[1722115330451,1.34687234,185.69,185.51,20.0]
[1722115330654,1.51686055,185.71,185.64,4.3093]
[1722115330849,62.68686055,185.71,185.64,4.3093]
[1722115331037,1.51686055,185.71,185.64,4.3093]
[1722115331241,1.34686055,185.71,185.56,20.0]
[1722115331446,0.34,185.7,185.54,20.0]
[1722115331752,1.34702249,185.69,185.55,0.17]
[1722115331934,1.34702249,185.69,185.54,20.0]
[1722115332942,0.34,185.68,185.6,4.3103]
[1722115333143,1.34705159,185.67,185.6,4.3103]
[1722115333339,23.1175,185.66,185.58,4.3106]
[1722115333649,23.1175,185.66,185.54,20.0]
[1722115333650,16.17,185.61,185.51,4.3122]
[1722115333851,62.51768042,185.6,185.43,5.5608725]
[1722115334150,32.4275,185.59,185.43,5.5608725]
[1722115334337,62.6877522,185.58,185.43,5.5608725]
[1722115334651,1.34782176,185.57,185.43,5.5608725]
[1722115334858,1.34782176,185.57,185.51,4.3122]
[1722115335162,1.34782176,185.57,185.43,6.63912714]
[1722115335354,1.34782176,185.57,185.43,5.5608725]
[1722115335565,1.34782176,185.57,185.5,4.3124]
[1722115336234,6.2273,185.56,185.48,4.313]
[1722115336453,1.34787869,185.55,185.4,32.4942578]
[1722115336662,1.34788807,185.54,185.47,4.3132]
[1722115336963,32.7675,185.53,185.41,5.5667153]
[1722115337135,32.7675,185.53,185.46,4.3135]
[1722115337136,1.34817173,185.52,185.46,4.3135]
[1722115337327,1.34812565,185.51,185.37,5.56808836]
[1722115337727,1.34812565,185.51,185.45,4.3138]
[1722115337954,1.34812565,185.51,185.43,4.314]
[1722115338147,1.34812565,185.51,185.37,5.56808836]
[1722115338148,1.34812565,185.51,185.42,4.3143]
[1722115338455,22.7373,185.5,185.44,4.314]
[1722115338633,22.7373,185.5,185.37,5.56808836]
[1722115338634,1.34826354,185.49,185.37,5.56808836]
[1722115338984,17.85846466,185.48,185.42,4.3145]
[1722115339130,1.34846466,185.48,185.43,4.3142]
[1722115339833,6.2273,185.5,185.4,25.54]
[1722115340052,6.2273,185.5,185.35,12.95848944]
[1722115340053,6.2273,185.5,185.48,4.313]
[1722115343467,6.2273,185.5,185.47,4.3131]
[1722115343674,18.4875969,185.58,185.4,25.54]
[1722115343675,9.9130969,185.58,185.49,51.08]
[1722115343885,24.26734087,185.97,185.67,0.6902]
[1722115344064,2.76121725,186.41,186.35,20.0]
[1722115344266,22.00871593,186.71,186.35,20.0]
[1722115344267,2.76121725,186.5,186.35,105.55]
[1722115344469,16.2575,186.65,186.37,20.0]
[1722115344470,0.3655925,186.44,186.37,20.0]
[1722115344660,0.8315069,186.64,186.43,20.0]
[1722115344853,5.39381355,186.78,186.63,10.28650431]
[1722115345059,5.39381355,186.78,186.75,5.13897717]
[1722115345278,0.8315069,186.83,186.75,16.85003066]
[1722115345481,8.39512478,186.88,186.81,10.28650431]
[1722115345654,25.54,186.82,186.64,0.17]
[1722115345857,25.54,186.73,186.65,52.86087711]
[1722115346052,8.39512478,186.88,186.68,20.56114827]
[1722115346254,4.2828,186.79,186.75,15.25358567]
[1722115346461,29.8239,186.75,186.51,17.40816303]
[1722115346671,8.39512478,186.88,186.61,18.21693636]
[1722115346979,4.2851,186.7,186.62,7.7343192]
[1722115347156,0.64572501,186.87,186.43,20.0]
[1722115347157,30.82,186.63,186.43,20.0]
[1722115347475,30.82,186.63,186.44,45.0]
[1722115347773,30.82,186.66,186.44,45.0]
[1722115348075,30.82,186.66,186.42,20.0]
[1722115348076,30.82,186.66,186.43,45.0]
[1722115348375,30.82,186.66,186.48,7.54920541]
[1722115348561,30.82,186.66,186.5,7.54920541]
[1722115348875,30.82,186.7,186.51,65.0]
[1722115349055,4.2843,186.73,186.51,72.54920541]
[1722115349257,10.7014,186.9,186.52,27.54920541]
[1722115349470,30.82,186.79,186.53,65.0]
[1722115349673,30.82,186.74,186.54,0.17]
[1722115349976,1.70874545,186.73,186.54,20.17]
[1722115350152,1.70874545,186.73,186.55,45.0]
[1722115350358,1.70874545,186.73,186.54,0.17]
[1722115350359,1.70874545,186.73,186.56,20.34]
[1722115350676,1.70874545,186.73,186.57,45.0]
[1722115350976,1.70874545,186.73,186.58,20.34]
[1722115351498,1.70874545,186.73,186.61,30.82]
[1722115351685,1.70874545,186.73,186.62,65.34]
[1722115351985,1.70874545,186.73,186.66,30.82]
[1722115352277,1.70874545,186.73,186.67,65.34]
[1722115354276,1.70874545,186.73,186.57,50.82]
[1722115354578,1.70874545,186.73,186.57,30.82]
[1722115354782,1.70874545,186.73,186.58,20.0]
[1722115354962,1.70874545,186.73,186.61,20.0]
[1722115355162,1.70874545,186.73,186.57,81.64]
[1722115355163,1.70874545,186.73,186.66,20.0]
[1722115355367,1.70874545,186.73,186.64,20.0]
[1722115355581,1.70874545,186.73,186.62,30.82]
[1722115355784,1.70874545,186.73,186.57,50.82]
[1722115355994,1.70874545,186.73,186.59,20.0]
[1722115357264,1.70874545,186.73,186.6,45.0]
[1722115357570,4.2858,186.67,186.48,20.0]
[1722115357779,4.2866,186.63,186.45,20.0]
[1722115358088,1.70874545,186.73,186.51,20.0]
[1722115358258,1.70874545,186.73,186.5,30.82]
[1722115358459,1.70874545,186.73,186.48,20.0]
[1722115358684,1.70874545,186.73,186.51,20.0]
[1722115358863,1.70874545,186.73,186.54,20.0]
[1722115359580,1.70874545,186.73,186.55,40.0]
[1722115359779,1.70874545,186.73,186.55,20.0]
[1722115360080,1.70874545,186.73,186.55,50.82]
[1722115360273,1.70874545,186.73,186.58,20.0]
[1722115360474,1.70874545,186.73,186.59,45.0]
[1722115360684,1.70874545,186.73,186.6,20.0]
[1722115360861,1.70874545,186.73,186.61,45.34]
[1722115361062,5.99314545,186.73,186.62,20.0]
[1722115361384,1.70874545,186.73,186.6,20.0]
[1722115361575,1.70874545,186.73,186.56,20.0]
[1722115361879,1.70874545,186.73,186.56,40.0]
[1722115362087,1.70874545,186.73,186.6,30.82]
[1722115362262,1.70874545,186.73,186.65,30.82]
[1722115362462,1.70874545,186.73,186.66,40.0]
[1722115362809,1.70874545,186.73,186.68,20.0]
[1722115362972,1.70874545,186.73,186.69,65.34]
[1722115363175,1.70874545,186.73,186.7,20.0]
[1722115363376,1.70874545,186.73,186.71,65.34]
[1722115363681,1.34874545,186.73,186.72,20.0]
[1722115363889,1.34874545,186.73,186.72,85.0]
[1722115364297,1.34874545,186.73,186.64,7.22505101]
[1722115364500,1.34874545,186.73,186.59,20.0]
[1722115364702,1.34874545,186.73,186.64,20.0]
[1722115364880,1.34874545,186.73,186.67,20.0]
[1722115365201,1.34874545,186.73,186.61,30.82]
[1722115365381,1.34874545,186.73,186.6,20.0]
[1722115365575,1.34874545,186.73,186.58,20.0]
[1722115365977,1.34874545,186.73,186.57,30.82]
[1722115366211,1.34874545,186.73,186.57,50.82]
[1722115366389,1.34874545,186.73,186.54,20.0]
[1722115367081,1.34874545,186.73,186.48,33.07831875]
[1722115367082,1.34874545,186.73,186.55,20.0]
[1722115367702,1.34874545,186.73,186.49,20.0]
[1722115367703,1.34874545,186.73,186.53,30.82]
[1722115367908,1.34874545,186.73,186.48,30.82]
[1722115368403,4.2846,186.72,186.49,46.99]
[1722115368605,4.285,186.7,186.49,30.82]
[1722115368816,20.0,186.71,186.55,30.82]
[1722115369037,1.34874545,186.73,186.6,30.82]
[1722115369180,1.34874545,186.73,186.6,50.82]
[1722115369393,1.34874545,186.73,186.55,30.82]
[1722115369704,1.34874545,186.73,186.6,20.0]
[1722115369897,1.34874545,186.73,186.62,20.0]
[1722115370094,1.34874545,186.73,186.63,45.17]
[1722115370341,1.34874545,186.73,186.66,20.0]
[1722115370643,1.34874545,186.73,186.64,65.0]
[1722115370644,1.34874545,186.73,186.7,20.0]
[1722115370817,15.46235466,188.14,186.64,20.0]
[1722115370818,15.0288,187.02,186.76,20.0]
[1722115371012,15.0288,187.02,186.77,65.17]
[1722115371206,4.2781,187.0,186.77,65.17]
[1722115371419,4.2785,186.98,186.77,65.17]
[1722115371618,4.2788,186.97,186.77,65.17]
[1722115371933,4.2799,186.92,186.78,0.17]
[1722115372118,30.82,186.97,186.78,0.17]
[1722115372633,4.279,186.96,186.78,0.17]
[1722115372809,45.8488,187.02,186.78,0.17]
[1722115373006,4.2799,186.92,186.78,0.17]
[1722115373326,20.0,186.96,186.77,0.17]
[1722115373826,30.82,186.92,186.66,26.29467368]
[1722115374000,20.0,186.91,186.67,27.02018102]
[1722115374324,4.2803,186.9,186.65,26.65761631]
[1722115374528,4.2809,186.88,186.67,26.92444266]
[1722115374699,4.2812,186.87,186.68,0.07115326]
[1722115375025,20.0,186.92,186.69,20.0]
[1722115375234,15.939,187.01,186.72,20.0]
[1722115375532,15.939,187.01,186.77,20.0]
[1722115375707,30.82,186.97,186.73,20.0]
[1722115376212,35.0989,186.97,186.74,65.34]
[1722115376414,30.82,186.97,186.74,65.34]
[1722115376618,35.0987,186.97,186.75,20.0]
[1722115376808,20.0,186.96,186.76,45.34]
[1722115377008,4.2785,186.98,186.77,20.17]
[1722115377204,15.939,187.01,186.69,20.0]
[1722115377433,30.82,186.94,186.69,20.0]
[1722115377721,35.0983,186.99,186.73,20.0]
[1722115377920,35.0983,186.99,186.7,20.0]
[1722115377921,30.82,186.99,186.7,40.0]
[1722115378125,4.279,186.96,186.72,20.0]
[1722115378314,30.82,186.94,186.68,20.0]
[1722115378510,21.3834,187.07,186.72,20.0]
[1722115378709,30.82,186.99,186.76,20.0]
[1722115379057,15.939,187.09,186.84,20.0]
[1722115379209,30.82,187.08,186.82,20.0]
[1722115379410,4.2767,187.06,186.82,20.0]
[1722115379618,4.2769,187.05,186.8,20.0]
[1722115379820,46.759,187.09,186.83,20.0]
[1722115380034,15.939,187.09,186.85,20.0]
[1722115380209,15.939,187.09,186.86,20.17]
[1722115380210,46.759,187.09,186.86,20.17]
[1722115380411,4.2768,187.06,186.87,45.17]
[1722115380730,46.759,187.09,186.86,20.17]
[1722115380731,4.2786,186.98,186.86,15.939]
[1722115381029,30.82,187.04,186.86,15.939]
[1722115381418,30.82,187.04,186.87,20.0]
[1722115381728,35.0973,187.04,186.86,15.939]
[1722115381935,4.2775,187.03,186.86,15.939]
[1722115382241,30.82,187.04,186.86,15.939]
[1722115382543,35.0972,187.04,186.86,15.939]
[1722115382908,20.0,187.03,186.87,0.17]
[1722115383123,4.2777,187.02,186.78,20.0]
[1722115383439,4.2781,187.0,186.84,20.0]
[1722115383733,4.2782,187.0,186.74,22.31898567]
[1722115384035,4.2786,186.98,186.8,20.0]
[1722115384234,4.2789,186.97,186.8,20.0]
[1722115384426,20.0,187.03,186.75,20.0]
[1722115384627,20.0,187.03,186.76,20.0]
[1722115384628,45.0,187.02,186.76,20.0]
[1722115384833,20.0,187.01,186.73,72.266674]
[1722115385022,45.0,187.0,186.73,52.266674]
[1722115385218,15.939,187.09,186.85,20.0]
[1722115385430,15.939,187.09,186.89,20.0]
[1722115386147,6.3095,187.17,186.95,20.0]
[1722115386439,6.3095,187.17,186.96,65.34]
[1722115386820,4.275,187.14,186.96,45.34]
[1722115387020,5.5423216,187.15,186.96,45.34]
[1722115387233,1.2676216,187.15,186.96,45.34]
[1722115387544,1.2676216,187.15,186.96,0.34]
[1722115387545,32.0876216,187.15,186.96,0.34]
[1722115387721,32.0876216,187.15,186.83,20.0]
[1722115387722,4.2772,187.04,186.83,20.0]
[1722115387913,30.82,187.1,186.86,20.0]
[1722115388113,4.2765,187.07,186.86,20.0]
[1722115388335,4.2767,187.06,186.84,20.0]
[1722115388532,30.82,187.1,186.84,20.0]
[1722115388727,20.0,187.09,186.86,20.0]
[1722115388941,24.2762,187.09,186.84,36.17]
[1722115389217,4.2763,187.08,186.84,20.0]
[1722115389417,4.2763,187.08,186.88,7.50505821]
[1722115389725,20.0,187.09,186.89,7.50505821]
[1722115390047,20.0,187.09,186.9,45.0]
[1722115390539,1.2676216,187.15,186.93,7.50505821]
[1722115390726,1.2676216,187.15,186.94,52.50505821]
[1722115390934,1.2676216,187.15,186.95,0.34]
[1722115391125,1.2676216,187.15,186.95,45.34]
[1722115391325,1.2676216,187.15,186.95,0.34]
[1722115391529,1.2676216,187.15,186.93,7.50046444]
[1722115391728,1.2676216,187.15,186.89,45.0]
[1722115391729,5.5422216,187.15,186.94,0.34]
[1722115391949,65.0,187.14,186.93,7.50393799]
[1722115392123,45.0,187.14,186.93,7.50393799]
[1722115392323,20.0,187.13,186.92,7.84247237]
[1722115392524,30.82,187.11,186.92,7.84247237]
[1722115392853,20.0,187.1,186.92,7.84247237]
[1722115393653,20.0,187.1,186.93,7.50247237]
[1722115393946,20.0,187.13,186.94,7.84247237]
[1722115394320,30.82,187.13,186.93,7.50247237]
[1722115394645,20.0,187.12,186.91,7.50247237]
[1722115394854,24.2754,187.12,186.82,20.0]
[1722115395152,20.0,187.12,186.91,7.51002033]
[1722115395351,20.0,187.12,186.92,7.51002033]
[1722115395520,5.5423216,187.15,186.93,7.51002033]
[1722115395521,1.2676216,187.15,186.93,7.51002033]
[1722115395728,1.2676216,187.15,186.82,16.17]
[1722115395729,30.82,187.14,186.94,7.51002033]
[1722115395934,35.0949,187.14,186.93,7.51002033]
[1722115396242,30.82,187.14,186.94,7.51002033]
[1722115396429,30.82,187.14,186.93,7.51002033]
[1722115396631,30.82,187.14,186.94,7.68002033]
[1722115396829,65.34,187.13,186.94,7.68002033]
[1722115397029,1.2676216,187.15,186.96,7.51002033]
[1722115397232,1.2676216,187.15,186.97,7.68002033]
[1722115397447,1.2676216,187.15,186.97,7.51002033]
[1722115397659,1.2676216,187.15,186.96,0.17]
[1722115397850,1.2676216,187.15,186.98,7.50530257]
[1722115398043,1.2676216,187.15,186.98,7.50353809]
[1722115398537,1.2676216,187.15,186.99,7.50353809]
[1722115399545,1.2676216,187.15,186.98,7.84353809]
[1722115400124,21.2676216,187.15,186.97,7.50353809]
[1722115400341,45.0,187.14,186.96,7.50353809]
[1722115400739,20.0,187.13,186.97,7.50353809]
[1722115401142,20.0,187.13,186.96,7.50353809]
[1722115401656,75.82,187.12,186.85,20.0]
[1722115401867,20.0,187.11,186.95,7.49993929]
[1722115402762,20.0,187.11,186.93,7.49993929]
[1722115402967,20.0,187.11,186.94,7.49993929]
[1722115403386,20.0,187.11,186.88,7.49993929]
[1722115403534,20.0,187.11,186.89,7.49984253]
[1722115403734,20.0,187.11,186.87,27.49984253]
[1722115403957,20.0,187.11,186.88,52.49984253]
[1722115404167,20.0,187.11,186.88,53.56919056]
[1722115404349,20.0,187.11,186.9,7.49598578]
[1722115404676,20.0,187.11,186.91,46.40928653]
[1722115404841,20.0,187.11,186.92,45.0]
[1722115405164,20.0,187.11,186.93,1.06939876]
[1722115406352,20.0,187.11,186.92,1.06940292]
[1722115406353,45.0,187.1,186.92,1.06940292]
[1722115406661,45.0,187.1,186.88,45.0]
[1722115406662,20.0,187.09,186.93,1.06948175]
[1722115406863,30.82,187.07,186.89,1.06943143]
[1722115407056,30.82,187.07,186.9,1.06957411]
[1722115407268,20.0,187.11,186.9,1.06957411]
[1722115407772,20.6030101,187.11,186.9,1.06957411]
[1722115408071,45.34,187.1,186.91,1.06957072]
[1722115408260,30.82,187.07,186.86,1.06962105]
[1722115408448,20.0,187.09,186.86,1.06962105]
[1722115409256,45.0,187.08,186.86,1.06962105]
[1722115409463,20.0,187.07,186.86,1.06962105]
[1722115410346,23.48813417,187.11,186.86,1.06962105]
[1722115410549,3.48813417,187.11,186.86,1.06962105]
[1722115410760,0.6030101,187.11,186.87,38.42435814]
[1722115410954,0.6030101,187.11,186.88,1.06936582]
[1722115411275,16.1621,187.03,186.88,1.06936582]
[1722115411442,16.1621,187.03,186.82,1.06983111]
[1722115411647,16.1621,187.03,186.83,1.06977652]
[1722115412146,30.82,187.0,186.81,6.6069712]
[1722115412357,30.82,186.95,186.74,1.07019317]
[1722115412749,20.0,186.94,186.76,5.54043232]
[1722115412947,20.0,186.94,186.77,1.07027241]
[1722115414062,20.0,186.94,186.77,1.07039151]
[1722115415354,20.0,186.94,186.78,0.34]
[1722115415572,20.0,186.94,186.76,6.61059539]
[1722115415775,45.34,186.93,186.77,1.23855705]
[1722115415968,20.0,186.92,186.77,2.30904005]
[1722115416284,20.0,186.94,186.77,2.30904005]
[1722115416594,30.82,186.9,186.77,1.23855705]
[1722115416893,16.1811,186.92,186.77,1.23855705]
[1722115416894,20.0,186.89,186.77,1.23855705]
[1722115417049,16.1811,186.92,186.78,1.07038667]
[1722115417249,16.1811,186.92,186.79,1.23842444]
[1722115417580,16.1811,186.92,186.8,1.07037975]
[1722115417775,16.1811,186.92,186.81,1.23829185]
[1722115417953,16.1811,186.92,186.82,1.07014098]
[1722115418155,16.1811,186.92,186.81,1.23829185]
[1722115419053,16.1811,186.92,186.82,1.07034907]
[1722115419255,16.1811,187.01,186.83,2.30827781]
[1722115419560,16.1811,187.01,186.84,1.06997426]
[1722115419778,16.1811,187.01,186.79,1.07009724]
[1722115420077,30.82,186.99,186.75,1.07008779]
[1722115420259,30.82,186.99,186.76,1.23862337]
[1722115420460,4.2788,186.97,186.77,1.07030868]
[1722115420774,4.279,186.96,186.78,1.23849074]
[1722115420980,4.2792,186.95,186.78,1.23849074]
[1722115421158,45.0,186.96,186.78,1.23849074]
[1722115421159,45.0,186.94,186.78,1.23849074]
[1722115421358,20.0,186.93,186.78,1.23849074]
[1722115421659,30.82,186.94,186.78,1.23849074]
[1722115421874,65.0,186.93,186.78,1.23849074]
[1722115423464,0.34,186.92,186.78,1.23849074]
[1722115424099,30.82,186.89,186.78,1.23849074]
[1722115424295,65.34,186.88,186.78,1.23849074]
[1722115424460,69.6208,186.88,186.78,1.23849074]
[1722115424662,6.6318,187.02,186.79,1.07093442]
[1722115425080,6.6318,187.02,186.79,21.07093442]
[1722115425287,6.6318,187.02,186.79,1.07093442]
[1722115425983,6.6318,187.02,186.8,6.87033712]
[1722115425984,30.82,186.99,186.8,6.87033712]
[1722115426210,30.82,186.99,186.78,1.23849074]
[1722115426363,46.99,186.99,186.78,1.23849074]
[1722115426565,30.82,186.94,186.78,1.23849074]
[1722115427088,46.99,186.94,186.78,1.23849074]
[1722115427283,65.34,186.93,186.78,1.23849074]
[1722115427470,16.17,186.92,186.78,1.23849074]
[1722115427662,65.34,186.93,186.78,1.23849074]
[1722115427663,20.0,186.93,186.78,1.23849074]
[1722115427866,37.4518,187.02,186.78,1.23849074]
[1722115427867,30.82,186.96,186.78,1.23849074]
[1722115428070,20.0,186.95,186.78,1.23849074]
[1722115428587,30.82,186.91,186.78,1.23849074]
[1722115428911,20.0,186.9,186.78,1.23849074]
[1722115429397,0.17,186.93,186.78,1.23849074]
[1722115429692,49.6195,186.94,186.78,1.23849074]
[1722115430063,20.0,186.93,186.78,1.23849074]